bitfinex-derivatives/quotes_ETHF0:USTF0_20260213
["timestamp","ask_amount","ask_price","bid_price","bid_amount"]
[1770999673438,0.56147148,2045.4,2044.5,0.10985838]
[1770999673940,0.56147148,2045.4,2044.6,0.10455077]
[1770999674141,0.56147148,2045.4,2044.5,4.32801336]
[1770999674330,0.56147148,2045.4,2044.6,0.10455077]
[1770999674841,0.53757636,2045.8,2044.8,0.10455077]
[1770999675939,0.53757636,2045.8,2044.9,0.13454932]
[1770999676138,0.53757636,2045.8,2044.9,0.13924415]
[1770999676843,0.53249475,2046.1,2045.2,0.13454932]
[1770999677144,0.53249475,2046.1,2045.3,0.13454932]
[1770999677347,0.53249475,2046.1,2045.5,0.13454932]
[1770999677747,0.53684784,2046.1,2045.5,0.13454932]
[1770999678042,0.53249475,2046.7,2045.7,0.138199]
[1770999678238,42.88795962,2047.4,2046.1,0.54470527]
[1770999678239,0.53249475,2047.4,2046.1,0.54470527]
[1770999679146,0.53834831,2047.4,2046.1,0.54470527]
[1770999679345,0.53834831,2047.4,2046.0,4.32801336]
[1770999679346,0.53834831,2047.4,2046.3,0.54470527]
[1770999680537,0.00585356,2047.4,2046.5,0.54470527]
[1770999680734,0.00585356,2047.4,2046.5,0.5496402]
[1770999680934,0.53249475,2047.6,2046.7,0.54470527]
[1770999682047,0.53729682,2047.6,2046.7,0.54470527]
[1770999683147,0.53729682,2047.6,2046.5,0.5496402]
[1770999683344,0.53729682,2047.6,2046.7,0.54470527]
[1770999683546,0.53729682,2047.6,2046.5,0.00493493]
[1770999683547,0.53249475,2048.6,2047.7,0.54470527]
[1770999683849,0.53249475,2048.6,2047.0,8.59769951]
[1770999683850,0.53249475,2048.4,2047.1,0.54470527]
[1770999684448,0.53728575,2048.4,2047.1,0.54470527]
[1770999685339,0.53728575,2048.4,2047.3,0.54470527]
[1770999685545,0.53728575,2048.4,2047.5,0.54470527]
[1770999686144,0.53728575,2048.4,2047.0,0.54470527]
[1770999687749,0.53249475,2048.2,2047.0,0.54470527]
[1770999689050,0.53249475,2048.0,2046.7,0.54470527]
[1770999689753,0.53249475,2047.8,2046.5,0.5496402]
[1770999690260,0.53249475,2047.6,2046.5,0.00493493]
[1770999690753,0.53249475,2047.4,2046.1,0.54470527]
[1770999691856,0.53249475,2047.4,2046.1,0.54851688]
[1770999697154,2.90315802,2048.4,2046.3,0.57251325]
[1770999697358,2.90315802,2048.4,2046.5,0.57251325]
[1770999697359,0.56941458,2047.6,2046.5,0.57251325]
[1770999697562,0.56941458,2047.6,2046.7,0.57251325]
[1770999697762,0.56941458,2047.6,2046.4,0.57251325]
[1770999699160,0.56941458,2047.6,2046.2,0.57251325]
[1770999699161,0.56941458,2047.5,2046.2,0.57251325]
[1770999699961,0.56941458,2047.3,2046.1,0.00381161]
[1770999700164,0.56941458,2047.1,2046.1,0.00381161]
[1770999702267,0.56941458,2047.1,2046.1,0.57632486]
[1770999703171,0.56941458,2047.1,2046.3,0.57251325]
[1770999703367,0.56941458,2047.3,2046.3,0.57251325]
[1770999703568,0.56941458,2047.3,2046.1,0.57632486]
[1770999704365,0.56941458,2047.2,2046.1,0.57632486]
[1770999705462,0.56941458,2047.2,2046.1,0.00381161]
[1770999705664,0.56941458,2047.0,2046.1,0.00381161]
[1770999706971,0.56941458,2047.0,2046.1,0.57632486]
[1770999707370,0.56941458,2047.0,2046.2,0.57251325]
[1770999708474,0.56941458,2047.5,2046.6,0.57251325]
[1770999709178,0.56941458,2047.5,2046.7,0.57251325]
[1770999709770,0.56941458,2047.5,2046.5,4.90052661]
[1770999710171,0.56941458,2047.5,2046.6,0.57251325]
[1770999713074,0.56941458,2047.7,2046.7,0.24445]
[1770999713273,0.56941458,2047.7,2047.0,0.57251325]
[1770999713577,0.56941458,2048.2,2047.2,0.57251325]
[1770999714774,0.56941458,2048.2,2047.4,0.57251325]
[1770999715381,0.56941458,2048.2,2047.1,4.32801336]
[1770999715678,0.56941458,2047.9,2046.7,4.90052661]
[1770999715879,0.56941458,2047.9,2046.7,0.57251325]
[1770999716377,0.56941458,2047.9,2046.8,0.57251325]
[1770999716979,0.56941458,2047.9,2046.6,4.90052661]
[1770999717378,0.56941458,2047.9,2046.8,0.57251325]
[1770999717575,0.56941458,2047.9,2047.0,0.57251325]
[1770999717778,0.56941458,2047.9,2047.2,0.57251325]
[1770999718983,0.56941458,2048.3,2047.3,0.57251325]
[1770999719184,0.56941458,2048.3,2047.4,0.57251325]
[1770999720977,0.56941458,2048.3,2047.2,4.32801336]
[1770999721283,0.56941458,2048.3,2047.3,0.53635873]
[1770999721980,0.54970741,2048.7,2047.8,0.53635873]
[1770999722179,0.54970741,2048.7,2047.9,0.53635873]
[1770999722483,0.54970741,2048.9,2047.9,0.24192108]
[1770999722685,0.54970741,2048.9,2048.1,0.24192108]
[1770999722887,0.54970741,2049.1,2048.1,0.24192108]
[1770999723085,0.55504374,2049.1,2048.1,0.24802968]
[1770999723481,0.55504374,2049.1,2048.1,0.0061086]
[1770999723686,0.54970741,2048.7,2047.4,4.56993444]
[1770999723884,0.54970741,2048.7,2047.4,0.24192108]
[1770999724085,0.54970741,2048.7,2047.8,0.26218195]
[1770999724382,0.54970741,2048.7,2047.6,0.26218195]
[1770999724774,0.54970741,2048.7,2047.6,0.26706774]
[1770999724980,0.54970741,2048.6,2047.6,0.00488579]
[1770999725379,0.54970741,2048.5,2047.6,0.00488579]
[1770999728588,0.54970741,2048.5,2047.6,0.20069381]
[1770999728881,0.54970741,2048.5,2047.6,0.00488579]
[1770999730184,0.54970741,2048.2,2046.9,0.21556052]
[1770999730387,0.54970741,2048.0,2046.7,4.54845967]
[1770999730686,0.54970741,2048.0,2046.7,0.22044631]
[1770999731086,0.54970741,2048.0,2047.0,0.22044631]
[1770999732381,0.54970741,2048.0,2046.8,4.54770218]
[1770999732687,0.54970741,2048.0,2046.8,0.21968882]
[1770999732884,0.54970741,2048.0,2046.9,0.21968882]
[1770999734082,2.58092905,2048.4,2046.9,0.21968882]
[1770999734289,0.54970741,2048.4,2047.6,0.22094705]
[1770999736987,0.54970741,2049.0,2047.7,0.22024037]
[1770999737581,0.54970741,2049.0,2047.8,0.22024037]
[1770999737996,0.54970741,2049.0,2047.7,0.2223762]
[1770999738493,0.54970741,2049.0,2047.8,0.2223762]
[1770999739395,0.54970741,2049.0,2048.0,0.2223762]
[1770999739783,0.54970741,2049.0,2047.9,0.24431]
[1770999740388,0.54970741,2048.8,2047.7,4.32801336]
[1770999740593,0.54970741,2048.8,2047.7,4.55007383]
[1770999740887,0.54970741,2048.8,2047.8,4.32801336]
[1770999741091,0.54970741,2048.8,2047.9,0.22206047]
[1770999741891,0.54970741,2048.8,2047.8,4.57233336]
[1770999742492,0.54970741,2048.8,2047.7,4.32801336]
[1770999743093,0.54970741,2048.8,2047.7,4.55369191]
[1770999743896,0.54970741,2048.8,2047.8,0.2256083]
[1770999744098,0.54970741,2048.8,2047.8,4.55362166]
[1770999744691,0.54970741,2048.8,2047.9,0.2256083]
[1770999746000,0.54970741,2048.8,2048.0,0.22547769]
[1770999746291,0.54970741,2048.8,2047.9,4.32801336]
[1770999746692,0.54970741,2048.8,2047.8,4.32801336]
[1770999746899,0.54970741,2048.8,2047.7,4.32801336]
[1770999747093,0.54970741,2048.6,2047.6,4.32801336]
[1770999747299,0.54970741,2048.4,2047.2,0.53635873]
[1770999747500,0.54970741,2048.2,2047.2,0.53635873]
[1770999747997,0.54970741,2048.6,2047.6,0.53635873]
[1770999748396,0.54970741,2048.9,2048.0,0.53635873]
[1770999748897,0.55504374,2049.1,2048.0,0.53635873]
[1770999749997,0.54970741,2048.9,2048.0,0.53635873]
[1770999750199,0.54970741,2048.9,2047.8,0.53635873]
[1770999750688,0.54970741,2048.9,2047.6,5.77767955]
[1770999750891,0.55393857,2048.7,2047.6,0.57523411]
[1770999751089,0.55393857,2048.5,2047.4,0.57523411]
[1770999753797,0.55393857,2048.1,2047.2,0.57523411]
[1770999753997,0.55393857,2047.9,2047.2,0.57523411]
[1770999754503,0.55393857,2048.1,2047.2,0.57523411]
[1770999756198,0.55393857,2048.3,2047.2,0.57523411]
[1770999756899,0.54801513,2048.5,2047.3,0.5597385]
[1770999757099,0.54801513,2048.5,2047.3,6.33741805]
[1770999757399,0.54801513,2048.5,2047.5,0.5597385]
[1770999757600,0.54801513,2048.8,2047.6,0.5597385]
[1770999757998,0.54801513,2048.8,2047.7,0.5597385]
[1770999758198,0.54801513,2048.7,2047.7,0.5597385]
[1770999759399,0.54801513,2048.5,2047.7,0.5597385]
[1770999759596,0.54801513,2048.5,2047.5,0.5597385]
[1770999761103,0.54801513,2048.5,2047.6,0.5597385]
[1770999761500,6.49401513,2048.7,2047.7,0.5597385]
[1770999761698,0.54801513,2048.7,2047.7,0.5597385]
[1770999762104,0.54801513,2048.7,2047.8,0.5597385]
[1770999763504,0.54801513,2048.7,2047.9,0.5597385]
[1770999763701,5.95,2048.9,2048.0,0.5597385]
[1770999763702,0.54801513,2048.9,2048.0,0.5597385]
[1770999763912,0.00533633,2049.1,2048.2,0.5597385]
[1770999764113,0.00533633,2049.1,2048.2,0.56418076]
[1770999764602,0.55335146,2049.1,2048.2,0.56418076]
[1770999765001,0.00533633,2049.1,2048.3,6.33741805]
[1770999765213,0.54801513,2049.5,2048.5,0.5597385]
[1770999765512,0.54801513,2049.5,2048.6,0.5597385]
[1770999766208,0.55256287,2049.5,2048.6,0.5597385]
[1770999766811,0.55256287,2049.5,2048.6,6.33741805]
[1770999766812,0.00454774,2049.5,2048.6,6.33741805]
[1770999767008,0.00454774,2049.5,2048.7,0.5597385]
[1770999767214,0.54801513,2050.0,2048.9,0.5597385]
[1770999768008,0.54801513,2049.8,2048.7,0.5597385]
[1770999768210,0.54801513,2049.4,2048.3,5.77767955]
[1770999768406,0.24419,2048.9,2048.2,0.00444226]
[1770999768606,0.24419,2048.9,2047.5,0.5597385]
[1770999768607,0.54801513,2048.7,2047.5,0.5597385]
[1770999769615,0.54801513,2048.7,2047.5,0.56587408]
[1770999769917,0.54801513,2048.7,2047.7,0.5597385]
[1770999773312,0.54801513,2049.1,2047.9,0.5597385]
[1770999774420,0.54801513,2048.9,2047.6,0.5597385]
[1770999776821,0.54801513,2048.9,2047.8,0.5597385]
[1770999777520,0.54801513,2049.4,2048.1,0.5597385]
[1770999777724,0.54801513,2049.4,2048.0,0.24429]
[1770999777725,0.54801513,2049.4,2048.3,0.5597385]
[1770999778122,0.54801513,2049.4,2048.4,0.5597385]
[1770999778926,0.54801513,2049.6,2048.5,0.5597385]
[1770999780429,0.55383987,2049.8,2048.5,0.5597385]
[1770999780730,0.54801513,2049.6,2048.5,0.5597385]
[1770999780922,0.5645492,2049.2,2047.9,0.57562464]
[1770999781127,0.5645492,2049.1,2047.9,0.57562464]
[1770999781326,0.5645492,2049.0,2047.9,0.57562464]
[1770999783019,0.5645492,2049.0,2047.7,0.57562464]
[1770999783222,0.5645492,2048.8,2047.7,0.57562464]
[1770999783925,0.5645492,2048.6,2047.5,0.00613558]
[1770999784128,0.5645492,2048.4,2047.5,0.58176022]
[1770999784523,0.5645492,2048.9,2047.5,0.58176022]
[1770999784927,0.5645492,2048.9,2047.6,0.57562464]
[1770999787825,0.5645492,2048.9,2047.8,0.57562464]
[1770999788230,0.5645492,2049.2,2048.1,4.93833761]
[1770999788431,0.5645492,2049.2,2048.2,0.57562464]
[1770999789227,0.5645492,2049.5,2048.6,0.57562464]
[1770999789433,0.00582474,2049.8,2048.6,0.57562464]
[1770999789434,0.5645492,2049.7,2048.6,0.57562464]
[1770999791328,0.2441,2049.6,2048.6,0.57562464]
[1770999791629,0.2441,2049.6,2048.4,0.57562464]
[1770999791630,0.5645492,2049.5,2048.4,0.57562464]
[1770999792026,0.5645492,2049.3,2048.2,0.57562464]
[1770999793827,2.9087995,2049.6,2048.4,0.57562464]
[1770999794032,0.00582474,2049.8,2048.6,0.57562464]
[1770999794033,0.57037394,2049.8,2048.6,0.57562464]
[1770999794225,0.57037394,2049.8,2048.7,0.57562464]
[1770999794428,0.00582474,2049.8,2048.9,0.57562464]
[1770999794624,0.00582474,2049.8,2049.1,0.57562464]
[1770999794834,0.00582474,2049.8,2049.1,0.58089435]
[1770999795727,0.5645492,2050.4,2049.3,0.57562464]
[1770999795931,0.5645492,2050.4,2049.4,0.57562464]
[1770999796332,0.5645492,2050.2,2049.1,0.00526971]
[1770999796536,0.5645492,2049.8,2049.1,0.00526971]
[1770999796827,0.5704108,2049.8,2049.1,0.00526971]
[1770999797433,0.5704108,2049.8,2049.1,0.58089435]
[1770999798030,0.5704108,2049.8,2049.1,0.00526971]
[1770999798635,0.5645492,2049.6,2048.4,0.57562464]
[1770999799436,0.5645492,2049.6,2048.1,4.60699297]
[1770999799437,0.5645492,2049.4,2048.2,0.57562464]
[1770999799634,0.5645492,2049.4,2048.2,0.00537297]
[1770999800234,0.5645492,2049.2,2048.2,0.00537297]
[1770999801528,0.5645492,2049.0,2048.2,0.00537297]
[1770999802535,0.5645492,2048.8,2047.7,0.57562464]
[1770999802742,0.5645492,2048.6,2047.4,0.57562464]
[1770999803634,0.5645492,2048.8,2047.7,0.57562464]
[1770999804335,0.5645492,2048.8,2047.9,0.57562464]
[1770999804741,0.5645492,2048.8,2047.7,0.57562464]
[1770999804942,0.5645492,2048.8,2047.8,0.57562464]
[1770999805138,5.885,2049.4,2047.7,4.36271297]
[1770999805139,0.5645492,2049.0,2048.0,0.57562464]
[1770999806244,0.5645492,2048.8,2047.7,0.57562464]
[1770999806850,0.5645492,2048.8,2047.9,0.57562464]
[1770999807049,0.5645492,2049.0,2047.9,0.57562464]
[1770999808539,0.5645492,2049.0,2047.9,4.36271297]
[1770999808744,0.5645492,2049.0,2048.0,0.57562464]
[1770999810345,0.2442,2048.8,2047.7,4.36271297]
[1770999810546,0.5645492,2048.7,2047.6,0.57562464]
[1770999810943,2.90992044,2049.2,2047.4,4.36854105]
[1770999810944,0.54539946,2048.5,2047.5,0.57148079]
[1770999812243,0.54539946,2049.0,2047.7,0.57148079]
[1770999812646,0.54539946,2049.0,2047.9,0.57148079]
[1770999813542,0.54539946,2048.8,2047.7,0.57148079]
[1770999815345,0.54539946,2048.6,2047.5,0.57148079]
[1770999815854,0.54539946,2048.6,2047.4,0.00582808]
[1770999816148,0.54539946,2048.4,2047.4,0.00582808]
[1770999816652,0.54539946,2048.4,2047.4,0.57730887]
[1770999818850,6.38539946,2048.4,2047.4,0.00582808]
[1770999819047,0.54898419,2048.3,2047.4,0.00582808]
[1770999819248,0.54898419,2048.3,2046.5,0.54391147]
[1770999819249,0.54898419,2047.8,2046.5,0.54391147]
[1770999819454,0.54898419,2047.6,2046.5,0.54391147]
[1770999819642,0.54898419,2047.6,2046.7,0.54391147]
[1770999819846,0.54898419,2047.8,2046.7,0.54391147]
[1770999820046,0.54898419,2047.8,2046.9,0.54391147]
[1770999820259,0.54898419,2047.8,2046.9,0.54772227]
[1770999821146,0.54898419,2047.8,2046.9,0.0038108]
[1770999821555,0.54898419,2047.8,2046.9,0.54772227]
[1770999824346,0.54898419,2047.7,2046.9,0.0038108]
[1770999826052,0.54898419,2047.5,2046.3,0.54391147]
[1770999826351,0.54898419,2047.7,2046.7,0.54391147]
[1770999827159,0.54898419,2047.6,2046.7,0.00582929]
[1770999827559,0.54898419,2047.6,2046.7,0.54974076]
[1770999834359,0.54898419,2047.6,2046.7,0.00582929]
[1770999835067,0.54898419,2047.2,2046.2,0.54391147]
[1770999836061,0.54898419,2047.2,2046.2,0.54848782]
[1770999837165,0.54898419,2046.6,2045.7,4.36271297]
[1770999837364,0.54898419,2046.6,2045.5,0.54391147]
[1770999838260,0.55297168,2046.6,2045.5,0.54745117]
[1770999840181,0.54898419,2046.4,2045.5,0.0035397]
[1770999840374,0.54898419,2046.4,2045.5,0.54745117]
[1770999841081,0.54898419,2046.4,2045.5,0.0035397]
[1770999841674,3.12879833,2046.4,2045.5,0.0035397]
[1770999841980,0.538055,2046.1,2045.1,0.5805263]
[1770999842680,0.538055,2046.1,2044.8,0.5805263]
[1770999842979,0.538055,2046.1,2044.8,0.58641625]
[1770999843179,0.538055,2045.9,2044.8,0.58641625]
[1770999843977,0.538055,2046.4,2045.0,0.5805263]
[1770999844281,0.538055,2046.4,2045.2,0.5805263]
[1770999845382,0.54204249,2046.6,2045.6,0.5805263]
[1770999845781,0.00398749,2046.6,2045.6,0.5805263]
[1770999845979,0.00398749,2046.6,2045.8,0.5805263]
[1770999846180,1e-08,2046.6,2046.0,0.5805263]
[1770999846386,0.538055,2047.0,2046.0,0.5805263]
[1770999847274,0.00612176,2047.0,2046.2,0.5805263]
[1770999848787,0.00612176,2047.0,2046.4,0.5805263]
[1770999849089,0.538055,2047.5,2046.4,0.5805263]
[1770999849284,0.538055,2047.7,2046.6,0.5805263]
[1770999849584,0.538055,2047.9,2046.6,0.5805263]
[1770999850089,0.54316771,2047.9,2046.6,0.58469097]
[1770999852184,0.54316771,2047.9,2046.7,0.24445]
[1770999852380,0.54316771,2047.9,2046.8,0.5805263]
[1770999853279,0.54316771,2047.9,2046.6,0.00416467]
[1770999853486,0.538055,2047.4,2046.2,0.5805263]
[1770999853790,0.538055,2047.5,2046.6,0.5805263]
[1770999854284,0.538055,2047.8,2046.8,0.5805263]
[1770999854485,0.538055,2047.8,2046.8,0.58442509]
[1770999854680,0.538055,2047.8,2046.8,0.00389879]
[1770999855493,0.538055,2047.8,2046.8,0.58442509]
[1770999857988,0.538055,2047.8,2046.8,0.00389879]
[1770999858587,0.538055,2047.8,2046.8,0.58442509]
[1770999858783,0.538055,2047.8,2046.8,0.00389879]
[1770999859395,0.538055,2047.8,2046.8,0.58442509]
[1770999861894,0.538055,2047.8,2046.8,0.00389879]
[1770999863401,0.538055,2047.8,2046.8,0.58442509]
[1770999864293,0.00511271,2047.9,2047.2,0.5805263]
[1770999864498,0.538055,2048.2,2047.2,0.5805263]
[1770999865400,0.54425793,2048.2,2047.2,0.5805263]
[1770999866902,0.54425793,2048.2,2047.4,0.5805263]
[1770999868298,42.88795962,2049.2,2047.1,2.57981414]
[1770999868299,0.538055,2048.9,2047.6,0.5805263]
[1770999868498,0.538055,2048.9,2047.8,0.5805263]
[1770999869098,0.538055,2048.9,2047.6,0.5805263]
[1770999869697,0.538055,2048.9,2047.3,4.36271297]
[1770999869698,0.54315953,2048.9,2047.7,0.5805263]
[1770999870003,0.54315953,2048.9,2048.1,0.5805263]
[1770999870197,0.54315953,2048.9,2048.2,0.24427]
[1770999870198,0.00510453,2048.9,2048.2,0.24427]
[1770999870397,0.538055,2049.3,2048.6,0.5805263]
[1770999870598,0.538055,2049.3,2048.1,0.80804851]
[1770999870800,0.54863334,2049.2,2048.1,0.56377851]
[1770999871006,0.54863334,2049.0,2047.8,0.56377851]
[1770999871204,0.54863334,2048.4,2047.4,0.56377851]
[1770999871404,0.54863334,2048.4,2047.4,0.56842789]
[1770999871405,0.55456184,2048.4,2047.4,0.56842789]
[1770999871600,0.54863334,2048.2,2047.4,0.00464938]
[1770999872199,0.54863334,2048.2,2047.4,0.56842789]
[1770999872392,0.54863334,2048.2,2047.4,0.00464938]
[1770999873800,0.54863334,2048.0,2046.7,0.56377851]
[1770999874899,0.54863334,2048.0,2046.7,0.56723453]
[1770999875801,0.54863334,2048.0,2047.1,0.56377851]
[1770999876899,0.0059285,2048.4,2047.1,0.56377851]
[1770999876900,0.54863334,2048.3,2047.3,0.56377851]
[1770999878299,0.54863334,2048.3,2047.5,0.57979353]
[1770999883310,0.0059285,2048.4,2047.7,0.57979353]
[1770999883706,0.0059285,2048.4,2047.9,0.57979353]
[1770999883908,0.58691609,2048.9,2048.0,0.57979353]
[1770999884409,2.90992044,2049.2,2047.9,0.57979353]
[1770999884707,0.58691609,2049.3,2048.3,0.57979353]
[1770999884907,0.58691609,2049.3,2048.4,0.57979353]
[1770999885208,0.59245578,2049.3,2048.6,0.57979353]
[1770999885402,0.58691609,2049.6,2048.7,0.57979353]
[1770999886213,0.58691609,2049.8,2048.9,0.57979353]
[1770999886710,43.80446771,2050.6,2048.9,0.57979353]
[1770999886711,0.58691609,2050.0,2049.1,0.57979353]
[1770999887310,0.59300439,2050.0,2049.1,0.57979353]
[1770999888416,0.59300439,2050.0,2048.7,0.57979353]
[1770999888709,0.24407,2049.9,2048.5,0.57979353]
[1770999888907,0.0060883,2050.0,2048.3,0.58323605]
[1770999888908,0.58691609,2049.6,2048.3,0.58323605]
[1770999893112,0.58691609,2049.4,2048.3,0.00344252]
[1770999893416,0.58691609,2049.2,2048.3,0.00344252]
[1770999893815,0.58691609,2049.0,2047.9,0.57979353]
[1770999894416,0.58691609,2049.0,2048.0,0.57979353]
[1770999894617,0.58691609,2049.5,2048.2,0.57979353]
[1770999894820,0.58691609,2049.5,2048.2,0.58576613]
[1770999896015,0.58691609,2049.3,2048.2,0.58576613]
[1770999896917,0.58691609,2049.3,2048.2,0.0059726]
[1770999897117,0.58691609,2049.3,2048.2,0.58576613]
[1770999897615,0.24415,2049.2,2048.2,0.0059726]
[1770999897820,0.58691609,2049.1,2048.2,0.0059726]
[1770999898316,0.58691609,2049.1,2048.2,0.58576613]
[1770999900413,0.58691609,2049.3,2048.2,0.58576613]
[1770999901210,0.58612944,2049.2,2048.2,0.0059726]
[1770999901416,0.58612944,2048.8,2047.6,0.53217226]
[1770999901817,0.58612944,2048.8,2047.8,0.53217226]
[1770999902119,0.58612944,2048.8,2048.0,0.53217226]
[1770999902418,0.58612944,2048.8,2048.0,0.53626453]
[1770999902614,1.71781801,2049.5,2048.9,0.53217226]
[1770999902817,0.58844465,2050.3,2049.5,0.00217286]
[1770999903022,0.58735822,2050.5,2049.7,3.12575718]
[1770999903324,0.12888426,2050.5,2049.8,4.46339501]
[1770999903622,0.58612944,2050.3,2049.4,2.87949432]
[1770999903921,0.59018599,2050.3,2049.4,3.34406546]
[1770999904120,6.55232331,2050.2,2049.4,0.46457114]
[1770999904321,0.58612944,2050.1,2049.4,0.00392432]
[1770999904623,0.58612944,2050.1,2048.9,5.77767955]
[1770999904624,0.58612944,2050.1,2048.9,2.87949432]
[1770999904924,0.58612944,2049.8,2048.8,3.34014114]
[1770999905122,0.58612944,2049.8,2048.8,2.87949432]
[1770999905327,0.58612944,2049.6,2048.6,2.87949432]
[1770999905518,0.58612944,2049.6,2048.6,0.00435006]
[1770999905718,0.58612944,2049.2,2048.5,4.51089785]
[1770999906015,0.58612944,2049.2,2048.4,3.22559089]
[1770999906319,0.58612944,2049.2,2048.5,4.51128158]
[1770999906616,0.58612944,2049.2,2048.5,2.87949432]
[1770999906917,0.58612944,2049.2,2048.5,0.35204122]
[1770999907123,0.58612944,2049.7,2048.7,0.34595581]
[1770999907317,0.58612944,2049.7,2048.6,2.87949432]
[1770999907512,0.58612944,2049.7,2048.7,4.51375538]
[1770999907718,0.58612944,2049.4,2048.6,2.87949432]
[1770999908218,0.58612944,2049.2,2048.5,2.88557973]
[1770999908420,0.58612944,2049.2,2048.6,4.62198125]
[1770999908621,0.58612944,2049.2,2048.5,2.88557973]
[1770999908816,0.58612944,2049.2,2048.6,4.619915]
[1770999909017,0.58612944,2049.2,2048.5,2.88557973]
[1770999909221,0.58612944,2049.2,2048.6,7.49927392]
[1770999909423,0.58612944,2049.2,2048.5,2.88557973]
[1770999909616,0.58612944,2049.1,2048.5,0.00608541]
[1770999909816,0.58612944,2049.1,2048.2,1.11416037]
[1770999910021,0.23497162,2048.3,2047.7,0.53217226]
[1770999910421,0.23497162,2048.3,2047.1,6.02207955]
[1770999910422,0.23497162,2048.3,2047.1,0.53217226]
[1770999910616,5.613,2048.6,2047.2,5.03408136]
[1770999910617,0.23497162,2048.0,2047.2,5.03408136]
[1770999910822,0.003548,2048.0,2047.4,0.53217226]
[1770999911225,0.003548,2048.0,2047.2,0.00620859]
[1770999911226,0.23864635,2048.0,2047.2,0.53838085]
[1770999911620,0.003548,2048.0,2047.4,0.53217226]
[1770999911824,0.23509835,2048.8,2047.6,0.53217226]
[1770999912126,0.23509835,2048.8,2047.5,4.49889236]
[1770999912127,0.23509835,2049.1,2047.8,0.53217226]
[1770999912326,0.23509835,2049.1,2048.0,0.53217226]
[1770999912531,0.23509835,2049.8,2048.4,0.53217226]
[1770999912729,0.23509835,2049.7,2048.6,0.53217226]
[1770999913126,6.79003397,2049.6,2048.6,0.53217226]
[1770999913327,0.23771066,2049.6,2048.6,0.53217226]
[1770999913522,0.24176759,2049.8,2048.8,0.53217226]
[1770999913830,0.24176759,2049.8,2048.8,0.53835837]
[1770999914034,0.23771066,2049.5,2048.8,0.53835837]
[1770999914328,0.23771066,2049.5,2048.8,0.03835837]
[1770999914524,0.58612944,2049.3,2048.8,0.00618611]
[1770999914926,6.55232331,2049.1,2048.8,0.00618611]
[1770999915126,0.58612944,2049.5,2048.8,0.53835837]
[1770999915326,0.58612944,2049.5,2048.8,0.00618611]
[1770999915631,0.58612944,2049.1,2048.8,0.00618611]
[1770999916032,6.55232331,2049.0,2048.8,0.00618611]
[1770999916227,6.55232331,2049.0,2048.5,0.53217226]
[1770999916433,0.58612944,2049.0,2048.6,4.47893808]
[1770999916634,0.58612944,2049.0,2048.4,0.53217226]
[1770999916835,0.58612944,2049.0,2048.5,5.01123385]
[1770999917034,0.58612944,2049.6,2048.5,0.53217226]
[1770999917238,0.58612944,2049.2,2048.5,0.53836284]
[1770999917832,0.58612944,2049.2,2048.5,0.00619058]
[1770999918032,0.58612944,2049.2,2048.5,0.53836284]
[1770999918336,7.13845275,2049.1,2048.5,0.53836284]
[1770999918536,0.58612944,2049.1,2048.5,0.53836284]
[1770999919237,0.58612944,2049.5,2048.5,0.53836284]
[1770999919435,0.58612944,2049.5,2048.7,0.53217226]
[1770999919832,6.55232331,2049.4,2048.7,0.53217226]
[1770999920232,0.58612944,2049.5,2048.7,0.53217226]
[1770999920438,7.13845275,2049.5,2048.7,0.53217226]
[1770999920638,0.58612944,2049.5,2048.7,0.53217226]
[1770999920834,0.59018637,2049.8,2048.9,0.53217226]
[1770999921041,0.59018637,2049.8,2049.0,5.0022347]
[1770999921235,0.00405693,2049.8,2049.2,0.53217226]
[1770999921638,6.55232331,2049.7,2049.2,0.53217226]
[1770999924144,0.00405693,2049.8,2049.2,0.53217226]
[1770999924445,0.58612944,2050.3,2049.4,0.53217226]
[1770999924638,0.58612944,2050.3,2049.6,0.53217226]
[1770999924832,0.24395,2050.9,2049.1,5.77767955]
[1770999924833,0.58612944,2050.8,2049.8,0.53217226]
[1770999925034,5.83795,2050.9,2049.3,5.77767955]
[1770999925035,0.58612944,2050.6,2049.5,0.53217226]
[1770999925240,0.58612944,2050.3,2049.3,0.53217226]
[1770999925440,0.58612944,2050.3,2049.4,4.98545263]
[1770999925640,0.59109079,2050.3,2049.5,0.53217226]
[1770999925841,6.55232331,2049.9,2049.5,0.53217226]
[1770999926344,6.55232331,2049.8,2049.5,0.53217226]
[1770999926648,0.00496135,2050.3,2049.5,0.53217226]
[1770999926843,6.55728466,2050.3,2049.5,0.53217226]
[1770999927042,0.00496135,2050.3,2049.7,0.53217226]
[1770999927450,0.58612944,2050.2,2049.5,0.53217226]
[1770999927648,0.58612944,2050.2,2049.6,4.44817762]
[1770999927848,7.13845275,2050.2,2049.5,0.53217226]
[1770999928049,7.13845275,2050.2,2049.6,4.97892942]
[1770999928249,0.58612944,2050.2,2049.6,0.53217226]
[1770999928552,6.55232331,2050.1,2049.6,0.53217226]
[1770999928948,6.55232331,2050.0,2049.6,0.53217226]
[1770999929142,0.59109079,2050.3,2049.4,0.77629226]
[1770999929450,6.55232331,2050.2,2049.6,0.53217226]
[1770999929851,6.55232331,2050.1,2049.6,0.53217226]
[1770999930249,0.59109079,2050.3,2049.3,0.53217226]
[1770999930554,0.58612944,2050.1,2049.3,0.53217226]
[1770999930948,6.55232331,2049.8,2049.3,0.53217226]
[1770999931253,0.58031608,2049.9,2048.8,0.58429862]
[1770999931453,0.58031608,2049.7,2048.9,4.44537139]
[1770999931654,0.58031608,2049.7,2048.8,0.58429862]
[1770999931854,6.55232331,2049.5,2049.0,0.58429862]
[1770999932154,0.58031608,2049.9,2049.0,0.58429862]
[1770999932352,7.13263939,2049.9,2049.0,0.58429862]
[1770999932550,0.58031608,2050.2,2049.2,0.58429862]
[1770999932944,6.55232331,2049.9,2049.2,0.58429862]
[1770999933451,0.00496135,2050.3,2049.5,0.43348768]
[1770999933652,0.58527743,2050.3,2049.7,0.43348768]
[1770999933847,5.37522881,2049.7,2049.2,6.21116723]
[1770999934155,0.58031608,2049.9,2049.3,0.43348768]
[1770999934354,0.58031608,2050.2,2049.3,0.43348768]
[1770999935045,0.58031608,2050.2,2049.1,5.77767955]
[1770999935046,5.37522881,2049.9,2049.5,0.4353872]
[1770999935253,0.58527743,2050.3,2049.5,0.4353872]
[1770999935452,0.58031608,2050.0,2049.3,0.6795272]
[1770999935657,0.58031608,2050.0,2049.4,4.44037515]
[1770999935953,0.58031608,2050.0,2049.3,0.6795272]
[1770999936158,5.95554489,2049.9,2049.4,4.87525982]
[1770999936351,0.58031608,2049.9,2049.2,0.4353872]
[1770999936551,5.95554489,2049.9,2049.3,4.43199771]
[1770999936751,0.58031608,2049.9,2049.2,0.4353872]
[1770999937054,5.94261212,2049.8,2049.3,4.43292148]
[1770999937257,0.56738331,2049.8,2049.0,6.21329588]
[1770999937556,5.37522881,2049.7,2049.1,4.86038627]
[1770999937757,0.56738331,2049.6,2049.0,0.43561633]
[1770999937955,5.37522881,2049.8,2049.2,0.43561633]
[1770999938154,0.56738331,2049.8,2049.2,0.43561633]
[1770999938652,5.37522881,2049.4,2049.2,0.43561633]
[1770999938850,5.37522881,2049.4,2049.2,0.43158147]